[Event "84th ESP-ch 2019"]
[Site "Marbella"]
[Date "2019.11.21"]
[Round "6.42"]
[White "Ruiz Bellon, Manuel"]
[Black "Silva Lucena, Cristian"]
[Result "0-1"]
[ECO "A04"]
[WhiteElo "1994"]
[BlackElo "2244"]
[Annotator "ChessBase"]
[PlyCount "78"]
[EventDate "2019.11.16"]
[EventType "swiss"]
[EventCountry "ESP"]
[SourceTitle "playchess.com"]
[Source "ChessBase"]
[SourceQuality "1"]
[TimeControl "5400+30"]

1. Nf3 {[%emt 0:00:00]} d6 {[%emt 0:00:00]} 2. g3 {[%emt 0:00:00]} e5 {[%emt 0:00:05]} 3. d3 {[%emt 0:00:00]} g6 {[%emt 0:00:26]} 4. Bg2 {[%emt 0:00:01]} Bg7 {[%emt 0:00:03]} 5. c4 {[%emt 0:01:37]} Nf6 {[%emt 0:00:16]} 6. Nc3 {[%emt 0:01:32]} Nc6 {[%emt 0:00:09]} 7. Bg5 {[%emt 0:01:56]} h6 {[%emt 0:00:21]} 8. Bd2 {[%emt 0:00:17]} O-O {[%emt 0:00:23]} 9. O-O {[%emt 0:00:07]} Re8 {[%emt 0:00:19]} 10. Qc2 {[%emt 0:05:36]} Bg4 {[%emt 0:00:43]} 11. Be3 {[%emt 0:02:24]} Qd7 {[%emt 0:01:33]} 12. Rac1 {[%emt 0:16:21]} Kh7 {[%emt 0:01:50]} 13. a3 {[%emt 0:00:41]} a5 {[%emt 0:00:23]} 14. Nd5 {[%emt 0:00:30]} Ne7 {[%emt 0:00:47]} 15. Nxe7 {[%emt 0:09:53]} Rxe7 {[%emt 0:02:02]} 16. c5 {[%emt 0:09:25]} Nd5 {[%emt 0:00:30]} 17. Bd2 {[%emt 0:01:07]} c6 {[%emt 0:03:58]} 18. cxd6 {[%emt 0:01:20]} Qxd6 {[%emt 0:00:30]} 19. Qc5 {[%emt 0:00:30]} Qxc5 {[%emt 0:00:30]} 20. Rxc5 {[%emt 0:00:30]} a4 {[%emt 0:00:30]} 21. Rfc1 {[%emt 0:04:36]} Nc7 {[%emt 0:01:48]} 22. Ra5 {[%emt 0:00:30]} Rxa5 {[%emt 0:00:30]} 23. Bxa5 {[%emt 0:00:30]} e4 {[%emt 0:00:30]} 24. dxe4 {[%emt 0:15:17]} Bxb2 {[%emt 0:05:22]} 25. Rb1 {[%emt 0:00:46]} Bxa3 {[%emt 0:00:24]} 26. Rxb7 {[%emt 0:00:03]} Nb5 {[%emt 0:00:10]} 27. Rb6 {[%emt 0:05:03]} Bd7 {[%emt 0:01:57]} 28. Nd2 {[%emt 0:01:25]} Bc5 {[%emt 0:01:12]} 29. Ra6 {[%emt 0:00:23]} a3 {[%emt 0:05:13]} 30. Bd8 {[%emt 0:00:16]} Re8 {[%emt 0:00:47]} 31. Bf6 {[%emt 0:00:24]} Bb4 {[%emt 0:00:05]} 32. Nc4 {[%emt 0:06:08]} c5 {[%emt 0:04:47]} 33. Ba1 {[%emt 0:01:46]} Be6 {[%emt 0:00:33]} 34. Ne5 {[%emt 0:01:54]} a2 {[%emt 0:01:00]} 35. Nd3 {[%emt 0:02:22]} Na3 {[%emt 0:00:30]} 36. e5 {[%emt 0:00:30]} Nc2 {[%emt 0:01:35]} 37. Bb2 {[%emt 0:03:01]} Ba3 {[%emt 0:00:08]} 38. Bc3 {[%emt 0:02:17]} Rb8 {[%emt 0:02:02]} 39. Be4 {[%emt 0:00:08]} Rb3 {[%emt 0:01:39]} 0-1

[Event "84th ESP-ch 2019"]
[Site "Marbella"]
[Date "2019.11.22"]
[Round "7.3"]
[White "Gines Esteo, Pedro Antonio"]
[Black "Narciso Dublan, Marc"]
[Result "0-1"]
[ECO "A06"]
[WhiteElo "2463"]
[BlackElo "2517"]
[Annotator "ChessBase"]
[PlyCount "136"]
[EventDate "2019.11.16"]
[EventType "swiss"]
[EventCountry "ESP"]
[SourceTitle "playchess.com"]
[Source "ChessBase"]
[SourceQuality "1"]
[TimeControl "5400+30"]

1. Nf3 {[%emt 0:00:00]} d5 {[%emt 0:00:00]} 2. g3 {[%emt 0:00:16]} Bg4 {[%emt 0:00:06]} 3. Bg2 {[%emt 0:00:05]} Nd7 {[%emt 0:00:31]} 4. c4 {[%emt 0:00:28]} e6 {[%emt 0:00:15]} 5. Qb3 {[%emt 0:04:13]} Nc5 {[%emt 0:00:48]} 6. Qe3 {[%emt 0:00:44]} c6 {[%emt 0:10:11]} 7. d4 {[%emt 0:06:32]} Nd7 {[%emt 0:01:05]} 8. Nbd2 {[%emt 0:01:37]} Ngf6 {[%emt 0:00:56]} 9. h3 {[%emt 0:04:41]} Bh5 {[%emt 0:02:31]} 10. Nh4 {[%emt 0:07:54]} dxc4 {[%emt 0:05:46]} 11. g4 {[%emt 0:16:00]} Nd5 {[%emt 0:05:22]} 12. Qg3 {[%emt 0:00:57]} Nb4 {[%emt 0:11:27]} 13. Be4 {[%emt 0:19:25]} Nf6 {[%emt 0:04:59]} 14. Bb1 {[%emt 0:06:30]} Bg6 {[%emt 0:09:09]} 15. Nxg6 {[%emt 0:00:12]} hxg6 {[%emt 0:00:04]} 16. a3 {[%emt 0:02:53]} Na6 {[%emt 0:01:38]} 17. g5 {[%emt 0:02:41]} Nh5 {[%emt 0:07:19]} 18. Qg4 {[%emt 0:00:04]} Nc7 {[%emt 0:10:32]} 19. Be4 {[%emt 0:05:31]} Nb5 {[%emt 0:03:08]} 20. e3 {[%emt 0:05:14]} Nd6 {[%emt 0:05:46]} 21. Bg2 {[%emt 0:00:05]} Be7 {[%emt 0:04:33]} 22. h4 {[%emt 0:00:06]} Qa5 {[%emt 0:00:32]} 23. O-O {[%emt 0:05:45]} Qf5 {[%emt 0:02:12]} 24. Qe2 {[%emt 0:00:21]} Qc2 {[%emt 0:00:53]} 25. a4 {[%emt 0:04:05]} f6 {[%emt 0:02:00]} 26. Ra3 {[%emt 0:02:36]} fxg5 {[%emt 0:02:22]} 27. hxg5 {[%emt 0:02:25]} Qf5 {[%emt 0:01:34]} 28. Nxc4 {[%emt 0:01:42]} Nxc4 {[%emt 0:01:23]} 29. e4 {[%emt 0:00:47]} Nf4 {[%emt 0:03:24]} 30. Qxc4 {[%emt 0:00:01]} Qg4 {[%emt 0:00:23]} 31. Bxf4 {[%emt 0:00:15]} Bxa3 {[%emt 0:00:05]} 32. Be5 {[%emt 0:01:19]} Be7 {[%emt 0:01:07]} 33. Qb3 {[%emt 0:00:20]} O-O-O {[%emt 0:03:27]} 34. d5 {[%emt 0:00:40]} exd5 {[%emt 0:00:51]} 35. exd5 {[%emt 0:00:05]} Rxd5 {[%emt 0:00:04]} 36. Bg3 {[%emt 0:00:41]} Rhd8 {[%emt 0:00:56]} 37. Bxd5 {[%emt 0:00:46]} Rxd5 {[%emt 0:00:05]} 38. Re1 {[%emt 0:00:03]} Qxg5 {[%emt 0:00:31]} 39. Qf3 {[%emt 0:00:46]} Bd8 {[%emt 0:01:02]} 40. Re8 {[%emt 0:00:42]} Qh5 {[%emt 0:00:27]} 41. Kg2 {[%emt 0:00:31]} Qxf3+ {[%emt 0:00:33]} 42. Kxf3 {[%emt 0:00:02]} Kd7 {[%emt 0:00:23]} 43. Rg8 {[%emt 0:00:08]} Bf6 {[%emt 0:00:08]} 44. Rb8 {[%emt 0:00:02]} Rd3+ {[%emt 0:00:05]} 45. Ke4 {[%emt 0:01:06]} Rb3 {[%emt 0:00:09]} 46. a5 {[%emt 0:00:29]} Rxb2 {[%emt 0:00:52]} 47. a6 {[%emt 0:00:03]} bxa6 {[%emt 0:00:37]} 48. Ra8 {[%emt 0:00:09]} Rb7 {[%emt 0:00:45]} 49. Bb8 {[%emt 0:00:14]} a5 {[%emt 0:01:00]} 50. Bxa7 {[%emt 0:00:07]} Rb4+ {[%emt 0:00:29]} 51. Kd3 {[%emt 0:00:07]} Rb5 {[%emt 0:00:32]} 52. Kc4 {[%emt 0:00:08]} Rb4+ {[%emt 0:00:07]} 53. Kd3 {[%emt 0:00:01]} Ke6 {[%emt 0:00:24]} 54. Bc5 {[%emt 0:00:07]} Rb3+ {[%emt 0:00:33]} 55. Ke4 {[%emt 0:00:01]} Rb5 {[%emt 0:00:10]} 56. Bf8 {[%emt 0:00:29]} Re5+ {[%emt 0:00:51]} 57. Kd4 {[%emt 0:00:39]} Rd5+ {[%emt 0:00:31]} 58. Kc4 {[%emt 0:00:15]} Rd8 {[%emt 0:00:17]} 59. Rxd8 {[%emt 0:00:02]} Bxd8 {[%emt 0:00:05]} 60. Bxg7 {[%emt 0:00:13]} Bf6 {[%emt 0:01:32]} 61. Bh6 {[%emt 0:00:27]} Be7 {[%emt 0:00:19]} 62. Bd2 {[%emt 0:00:15]} a4 {[%emt 0:00:27]} 63. Be3 {[%emt 0:00:32]} a3 {[%emt 0:00:29]} 64. Kb3 {[%emt 0:00:02]} Kd5 {[%emt 0:00:06]} 65. f3 {[%emt 0:00:02]} Bb4 {[%emt 0:00:56]} 66. Bh6 {[%emt 0:00:07]} c5 {[%emt 0:00:31]} 67. Bg7 {[%emt 0:00:01]} Ke6 {[%emt 0:00:24]} 68. Kc4 {[%emt 0:00:01]} Kf5 {[%emt 0:00:16] Kd4 Ke5+} 0-1

[Event "84th ESP-ch 2019"]
[Site "Marbella"]
[Date "2019.11.22"]
[Round "7.6"]
[White "Salgado Lopez, Ivan"]
[Black "Alsina Leal, Daniel"]
[Result "1-0"]
[ECO "B24"]
[WhiteElo "2594"]
[BlackElo "2467"]
[Annotator "ChessBase"]
[PlyCount "165"]
[EventDate "2019.11.16"]
[EventType "swiss"]
[EventCountry "ESP"]
[SourceTitle "playchess.com"]
[Source "ChessBase"]
[SourceQuality "1"]
[TimeControl "5400+30"]

1. e4 {[%emt 0:00:00]} c5 {[%emt 0:00:00]} 2. Nc3 {[%emt 0:00:00]} Nc6 {[%emt 0:00:31]} 3. Nf3 {[%emt 0:00:00]} e5 {[%emt 0:00:46]} 4. Bc4 {[%emt 0:00:00]} Be7 {[%emt 0:00:05]} 5. d3 {[%emt 0:00:02]} d6 {[%emt 0:00:10]} 6. a4 {[%emt 0:00:04]} Nf6 {[%emt 0:00:42]} 7. Bd2 {[%emt 0:00:11]} O-O {[%emt 0:03:53]} 8. O-O {[%emt 0:00:10]} Nd4 {[%emt 0:04:13]} 9. Nxd4 {[%emt 0:01:06]} cxd4 {[%emt 0:00:12]} 10. Nd5 {[%emt 0:00:06]} Nxd5 {[%emt 0:03:25]} 11. Bxd5 {[%emt 0:00:32]} Be6 {[%emt 0:07:16]} 12. Bxe6 {[%emt 0:00:18]} fxe6 {[%emt 0:00:05]} 13. Qg4 {[%emt 0:00:04]} Rf6 {[%emt 0:04:26]} 14. c3 {[%emt 0:03:56]} Qb6 {[%emt 0:27:58]} 15. Qe2 {[%emt 0:02:25]} Rc8 {[%emt 0:07:29]} 16. Rab1 {[%emt 0:04:03]} Qa6 {[%emt 0:04:38]} 17. cxd4 {[%emt 0:01:12]} exd4 {[%emt 0:00:05]} 18. b3 {[%emt 0:02:31]} b5 {[%emt 0:09:11]} 19. a5 {[%emt 0:03:18]} Qb7 {[%emt 0:00:14]} 20. Bb4 {[%emt 0:05:18]} a6 {[%emt 0:01:03]} 21. Rbc1 {[%emt 0:05:59]} Rff8 {[%emt 0:00:55]} 22. Qg4 {[%emt 0:04:43]} Qd7 {[%emt 0:00:36]} 23. g3 {[%emt 0:02:43]} Rfe8 {[%emt 0:06:31]} 24. Kg2 {[%emt 0:04:08]} Bf8 {[%emt 0:00:20]} 25. Ba3 {[%emt 0:05:24]} g6 {[%emt 0:06:23]} 26. Bb4 {[%emt 0:05:01]} Rxc1 {[%emt 0:01:23]} 27. Rxc1 {[%emt 0:00:25]} Rc8 {[%emt 0:00:04]} 28. Rxc8 {[%emt 0:00:19]} Qxc8 {[%emt 0:00:03]} 29. e5 {[%emt 0:09:51]} dxe5 {[%emt 0:02:36]} 30. Bxf8 {[%emt 0:00:08]} Kxf8 {[%emt 0:00:09]} 31. Qe4 {[%emt 0:00:06]} Kf7 {[%emt 0:04:46]} 32. Qxe5 {[%emt 0:02:40]} Qc3 {[%emt 0:00:02]} 33. Qe4 {[%emt 0:03:22]} Qxb3 {[%emt 0:00:37]} 34. Qb7+ {[%emt 0:00:59]} Kf6 {[%emt 0:01:20]} 35. Qxa6 {[%emt 0:00:06]} b4 {[%emt 0:02:00]} 36. Qb7 {[%emt 0:01:17]} Qd5+ {[%emt 0:01:47]} 37. Qxd5 {[%emt 0:00:12]} exd5 {[%emt 0:00:05]} 38. a6 {[%emt 0:00:11]} b3 {[%emt 0:00:03]} 39. a7 {[%emt 0:00:08]} b2 {[%emt 0:00:04]} 40. a8=Q {[%emt 0:00:07]} b1=Q {[%emt 0:00:07]} 41. Qh8+ {[%emt 0:00:14]} Ke6 {[%emt 0:00:10]} 42. Qxd4 {[%emt 0:00:06]} h5 {[%emt 0:01:04]} 43. Qe3+ {[%emt 0:00:48]} Kf7 {[%emt 0:00:21]} 44. Qf4+ {[%emt 0:00:04]} Ke6 {[%emt 0:00:12]} 45. Qe3+ {[%emt 0:00:29]} Kf7 {[%emt 0:00:02]} 46. d4 {[%emt 0:00:16]} Qa2 {[%emt 0:00:52]} 47. Qe5 {[%emt 0:00:18]} Qc4 {[%emt 0:00:35]} 48. h3 {[%emt 0:00:44]} Qa2 {[%emt 0:00:30]} 49. g4 {[%emt 0:00:43]} hxg4 {[%emt 0:00:04]} 50. hxg4 {[%emt 0:00:08]} Qc4 {[%emt 0:00:50]} 51. Kg3 {[%emt 0:00:40]} Qc6 {[%emt 0:01:59]} 52. f3 {[%emt 0:03:56]} Qd7 {[%emt 0:00:35]} 53. Kh4 {[%emt 0:02:26]} Qd8+ {[%emt 0:01:31]} 54. g5 {[%emt 0:03:08]} Kg8 {[%emt 0:00:05]} 55. Qe6+ {[%emt 0:00:26]} Kg7 {[%emt 0:00:05]} 56. Kg4 {[%emt 0:00:44]} Qa8 {[%emt 0:01:23]} 57. Qf6+ {[%emt 0:01:36]} Kh7 {[%emt 0:00:10]} 58. Qf7+ {[%emt 0:00:10]} Kh8 {[%emt 0:00:03]} 59. Qxg6 {[%emt 0:00:22]} Qa2 {[%emt 0:00:38]} 60. Qf6+ {[%emt 0:00:21]} Kg8 {[%emt 0:00:05]} 61. Kg3 {[%emt 0:02:57]} Qa5 {[%emt 0:01:49]} 62. Kg4 {[%emt 0:04:34]} Qa2 {[%emt 0:00:18]} 63. Kf5 {[%emt 0:01:55]} Qc2+ {[%emt 0:00:45]} 64. Ke5 {[%emt 0:00:22]} Qe2+ {[%emt 0:00:24]} 65. Kxd5 {[%emt 0:00:19]} Qb5+ {[%emt 0:00:14]} 66. Ke6 {[%emt 0:02:06]} Qa6+ {[%emt 0:00:19]} 67. Kf5 {[%emt 0:00:26]} Qd3+ {[%emt 0:00:49]} 68. Kg4 {[%emt 0:00:18]} Qd2 {[%emt 0:01:18]} 69. Qf4 {[%emt 0:01:15]} Qg2+ {[%emt 0:00:19]} 70. Kf5 {[%emt 0:00:30]} Qh3+ {[%emt 0:00:40]} 71. Ke5 {[%emt 0:00:21]} Qd7 {[%emt 0:00:16]} 72. Qf6 {[%emt 0:00:58]} Qc7+ {[%emt 0:00:29]} 73. Qd6 {[%emt 0:01:18]} Qg7+ {[%emt 0:00:26]} 74. Kf4 {[%emt 0:00:32]} Qf7+ {[%emt 0:00:25]} 75. Kg3 {[%emt 0:00:38]} Qf5 {[%emt 0:00:58]} 76. Qd8+ {[%emt 0:01:05]} Kh7 {[%emt 0:00:02]} 77. Qe7+ {[%emt 0:01:28]} Kg8 {[%emt 0:00:06]} 78. Qe4 {[%emt 0:00:14]} Qd7 {[%emt 0:00:54]} 79. d5 {[%emt 0:00:16]} Qc7+ {[%emt 0:00:36]} 80. Qf4 {[%emt 0:00:49]} Qa5 {[%emt 0:00:38]} 81. Qe4 {[%emt 0:00:51]} Qc7+ {[%emt 0:00:11]} 82. Kg4 {[%emt 0:00:12]} Qh2 {[%emt 0:00:31]} 83. Qe6+ {[%emt 0:00:21]} 1-0

[Event "84th ESP-ch 2019"]
[Site "Marbella"]
[Date "2019.11.22"]
[Round "7.7"]
[White "Santos Latasa, Jaime"]
[Black "Huerga Leache, Mikel"]
[Result "1-0"]
[ECO "E49"]
[WhiteElo "2581"]
[BlackElo "2456"]
[Annotator "ChessBase"]
[PlyCount "71"]
[EventDate "2019.11.16"]
[EventType "swiss"]
[EventCountry "ESP"]
[SourceTitle "playchess.com"]
[Source "ChessBase"]
[SourceQuality "1"]
[TimeControl "5400+30"]

1. d4 {[%emt 0:01:54]} Nf6 {[%emt 0:00:00]} 2. c4 {[%emt 0:00:12]} e6 {[%emt 0:00:00]} 3. Nc3 {[%emt 0:00:15]} Bb4 {[%emt 0:00:00]} 4. e3 {[%emt 0:00:05]} O-O {[%emt 0:00:00]} 5. Bd3 {[%emt 0:00:00]} d5 {[%emt 0:01:15]} 6. a3 {[%emt 0:00:00]} Bxc3+ {[%emt 0:00:07]} 7. bxc3 {[%emt 0:00:05]} c5 {[%emt 0:00:12]} 8. cxd5 {[%emt 0:00:07]} exd5 {[%emt 0:00:52]} 9. Ne2 {[%emt 0:00:17]} Re8 {[%emt 0:01:08]} 10. O-O b6 11. f3 {[%emt 0:00:41]} Nc6 {[%emt 0:04:56]} 12. g4 {[%emt 0:04:10]} h5 {[%emt 0:03:02]} 13. h3 {[%emt 0:07:21]} g6 {[%emt 0:02:06]} 14. Ra2 {[%emt 0:01:48]} Kg7 {[%emt 0:01:27]} 15. Ng3 {[%emt 0:08:31]} Qd6 {[%emt 0:03:53]} 16. Rg2 {[%emt 0:00:59]} hxg4 {[%emt 0:00:10]} 17. hxg4 {[%emt 0:02:20]} Rh8 {[%emt 0:00:23]} 18. Ne2 {[%emt 0:05:03]} Bd7 {[%emt 0:04:38]} 19. Qe1 {[%emt 0:01:57]} a5 {[%emt 0:06:05]} 20. a4 {[%emt 0:03:17]} Nd8 {[%emt 0:06:45]} 21. e4 {[%emt 0:02:00]} dxe4 {[%emt 0:02:58]} 22. Bf4 {[%emt 0:01:05]} Qe6 {[%emt 0:08:36]} 23. Be5 {[%emt 0:12:35]} exd3 {[%emt 0:03:24]} 24. Nf4 {[%emt 0:00:21]} Qc6 {[%emt 0:01:11]} 25. g5 {[%emt 0:01:33]} Kg8 {[%emt 0:01:00]} 26. Bxf6 {[%emt 0:00:28]} Qd6 {[%emt 0:11:08]} 27. Qg3 {[%emt 0:02:42]} Ne6 {[%emt 0:02:01]} 28. Rh2 {[%emt 0:00:16]} Rxh2 {[%emt 0:04:06]} 29. Qxh2 {[%emt 0:00:06]} Ng7 {[%emt 0:00:20]} 30. Bxg7 {[%emt 0:00:07]} f6 {[%emt 0:04:17]} 31. Bxf6 {[%emt 0:00:32]} d2 {[%emt 0:00:06]} 32. Qh8+ {[%emt 0:00:30]} Kf7 {[%emt 0:00:19]} 33. Qg7+ {[%emt 0:00:05]} Ke8 {[%emt 0:00:08]} 34. Qg8+ {[%emt 0:00:11]} Qf8 {[%emt 0:00:11]} 35. Qxg6+ {[%emt 0:00:05]} Qf7 {[%emt 0:00:04]} 36. Qe4+ {[%emt 0:00:05]} 1-0

[Event "84th ESP-ch 2019"]
[Site "Marbella"]
[Date "2019.11.22"]
[Round "7.8"]
[White "Ibarra Jerez, Jose Carlos"]
[Black "Merario Alarcon, Andres"]
[Result "1-0"]
[ECO "C29"]
[WhiteElo "2540"]
[BlackElo "2394"]
[Annotator "ChessBase"]
[PlyCount "109"]
[EventDate "2019.11.16"]
[EventType "swiss"]
[EventCountry "ESP"]
[SourceTitle "playchess.com"]
[Source "ChessBase"]
[SourceQuality "1"]
[TimeControl "5400+30"]

1. e4 {[%emt 0:02:14]} e5 {[%emt 0:00:00]} 2. Nc3 {[%emt 0:00:08]} Nf6 {[%emt 0:00:00]} 3. f4 {[%emt 0:00:06]} d5 {[%emt 0:00:05]} 4. fxe5 {[%emt 0:00:06]} Nxe4 {[%emt 0:00:14]} 5. Qf3 {[%emt 0:00:10]} Nc6 {[%emt 0:01:45]} 6. Bb5 {[%emt 0:00:07]} Nxc3 {[%emt 0:00:12]} 7. dxc3 {[%emt 0:00:05]} Qh4+ {[%emt 0:00:05]} 8. g3 {[%emt 0:00:06]} Qe4+ {[%emt 0:00:05]} 9. Qxe4 {[%emt 0:00:05]} dxe4 {[%emt 0:00:06]} 10. Bxc6+ {[%emt 0:00:04]} bxc6 {[%emt 0:00:06]} 11. Be3 {[%emt 0:00:03]} Be7 {[%emt 0:07:06]} 12. Ne2 {[%emt 0:00:38]} h5 {[%emt 0:01:26]} 13. Nd4 {[%emt 0:02:17]} Bc5 {[%emt 0:14:59]} 14. Bg5 {[%emt 0:17:23]} Bxd4 {[%emt 0:17:02]} 15. cxd4 {[%emt 0:00:18]} Bg4 {[%emt 0:00:06]} 16. Kf2 {[%emt 0:05:13]} f6 {[%emt 0:03:17]} 17. exf6 {[%emt 0:00:36]} gxf6 {[%emt 0:00:02]} 18. Bf4 {[%emt 0:07:26]} O-O-O {[%emt 0:04:11]} 19. Ke3 {[%emt 0:02:32]} Rd7 {[%emt 0:08:54]} 20. h3 {[%emt 0:06:11]} Bf3 {[%emt 0:00:40]} 21. Rh2 {[%emt 0:00:24]} Rhd8 {[%emt 0:02:28]} 22. Rd2 {[%emt 0:00:34]} c5 {[%emt 0:00:13]} 23. c3 {[%emt 0:00:45]} Kb7 {[%emt 0:03:20]} 24. b4 {[%emt 0:03:55]} cxb4 {[%emt 0:06:42]} 25. cxb4 {[%emt 0:00:32]} c6 {[%emt 0:08:01]} 26. Rc1 {[%emt 0:02:38]} Rd5 {[%emt 0:00:45]} 27. a4 {[%emt 0:02:53]} a6 {[%emt 0:00:18]} 28. Rc4 {[%emt 0:04:07]} R8d7 {[%emt 0:00:59]} 29. Kf2 {[%emt 0:03:30]} Rf5 {[%emt 0:01:27]} 30. Ke3 {[%emt 0:01:50]} Rfd5 {[%emt 0:00:07]} 31. Rc1 {[%emt 0:01:25]} Rd8 {[%emt 0:02:41]} 32. Rc4 {[%emt 0:05:52]} R8d7 {[%emt 0:00:30]} 33. Ra2 {[%emt 0:03:38]} Re7 {[%emt 0:07:10]} 34. Ra1 {[%emt 0:02:50]} Bg2 {[%emt 0:00:40]} 35. Rac1 {[%emt 0:01:13]} Re6 {[%emt 0:00:12]} 36. h4 {[%emt 0:06:15]} Bf3 {[%emt 0:00:43]} 37. Rc5 {[%emt 0:01:12]} Rxc5 {[%emt 0:02:45]} 38. bxc5 {[%emt 0:00:59]} Ka7 {[%emt 0:03:43]} 39. Bd6 {[%emt 0:03:40]} Re8 {[%emt 0:00:51]} 40. Rb1 {[%emt 0:01:42]} Bg2 {[%emt 0:00:49]} 41. Rb6 {[%emt 0:00:57]} Rc8 {[%emt 0:00:03]} 42. Rb2 {[%emt 0:02:11]} Bf3 {[%emt 0:00:08]} 43. a5 {[%emt 0:00:55]} Re8 {[%emt 0:00:33]} 44. Rb6 {[%emt 0:00:48]} Rc8 {[%emt 0:00:05]} 45. Rb1 {[%emt 0:01:52]} Re8 {[%emt 0:00:10]} 46. Rb2 {[%emt 0:00:26]} Rc8 {[%emt 0:00:48]} 47. Rb6 {[%emt 0:01:40]} Bg2 {[%emt 0:00:21]} 48. Kf2 {[%emt 0:01:53]} Bf3 {[%emt 0:00:45]} 49. Ke3 {[%emt 0:02:55]} Bg2 {[%emt 0:00:06]} 50. Bf4 {[%emt 0:01:33]} Bf3 {[%emt 0:00:25]} 51. d5 {[%emt 0:00:30]} cxd5 {[%emt 0:00:17]} 52. Kd4 {[%emt 0:00:19]} f5 {[%emt 0:04:39]} 53. c6 {[%emt 0:00:23]} Be2 {[%emt 0:01:28]} 54. c7 {[%emt 0:00:26]} Bb5 {[%emt 0:00:15]} 55. Rb8 {[%emt 0:00:13]} 1-0

[Event "84th ESP-ch 2019"]
[Site "Marbella"]
[Date "2019.11.22"]
[Round "7.9"]
[White "Arizmendi Martinez, Julen Luis"]
[Black "Rahal, Michael A"]
[Result "1-0"]
[ECO "C08"]
[WhiteElo "2517"]
[BlackElo "2309"]
[Annotator "ChessBase"]
[PlyCount "101"]
[EventDate "2019.11.16"]
[EventType "swiss"]
[EventCountry "ESP"]
[SourceTitle "playchess.com"]
[Source "ChessBase"]
[SourceQuality "1"]
[TimeControl "5400+30"]

1. e4 {[%emt 0:01:37]} e6 {[%emt 0:00:00]} 2. d4 {[%emt 0:00:40]} d5 {[%emt 0:00:00]} 3. Nd2 {[%emt 0:01:32]} c5 {[%emt 0:00:00]} 4. exd5 {[%emt 0:07:06]} exd5 {[%emt 0:00:03]} 5. Bb5+ {[%emt 0:04:19]} Bd7 {[%emt 0:01:01]} 6. Bxd7+ {[%emt 0:04:03]} Qxd7 {[%emt 0:11:58]} 7. dxc5 {[%emt 0:06:30]} Bxc5 {[%emt 0:02:50]} 8. Nb3 {[%emt 0:01:19]} Bb6 {[%emt 0:01:08]} 9. a4 {[%emt 0:08:16]} a6 {[%emt 0:08:21]} 10. a5 {[%emt 0:03:09]} Ba7 {[%emt 0:00:17]} 11. Qe2+ {[%emt 0:07:22]} Qe6 {[%emt 0:02:30]} 12. Nf3 {[%emt 0:10:12]} Nc6 {[%emt 0:09:15]} 13. Bg5 {[%emt 0:08:03]} h6 {[%emt 0:03:58]} 14. Bh4 Nge7 {[%emt 0:03:31]} 15. Bxe7 {[%emt 0:09:49]} Kxe7 {[%emt 0:02:36]} 16. Ra4 {[%emt 0:03:58]} Rhe8 {[%emt 0:05:08]} 17. Nfd4 {[%emt 0:03:37]} Bxd4 {[%emt 0:05:47]} 18. Nxd4 {[%emt 0:00:33]} Nxd4 {[%emt 0:00:17]} 19. Rxd4 {[%emt 0:00:36]} Kd6 {[%emt 0:09:55]} 20. Qxe6+ {[%emt 0:00:06]} Rxe6+ {[%emt 0:08:16]} 21. Kd2 {[%emt 0:00:31]} Rae8 {[%emt 0:01:50]} 22. Rf4 {[%emt 0:00:18]} f6 {[%emt 0:02:22]} 23. Ra1 {[%emt 0:03:09]} R8e7 {[%emt 0:05:13]} 24. Kd3 {[%emt 0:00:57]} Kc5 {[%emt 0:04:36]} 25. b3 {[%emt 0:06:02]} g6 {[%emt 0:03:45]} 26. g4 {[%emt 0:01:10]} h5 {[%emt 0:02:10]} 27. gxh5 {[%emt 0:00:23]} g5 {[%emt 0:00:38]} 28. Rf5 {[%emt 0:04:25]} Rh7 {[%emt 0:01:01]} 29. Ra4 {[%emt 0:03:33]} Rxh5 30. Rc4+ {[%emt 0:00:41]} Kd6 {[%emt 0:01:47]} 31. Rd4 {[%emt 0:00:34]} Rh3+ {[%emt 0:01:16]} 32. f3 {[%emt 0:00:46]} Rxh2 {[%emt 0:01:24]} 33. Rfxd5+ {[%emt 0:00:29]} Kc7 {[%emt 0:02:04]} 34. Rd7+ {[%emt 0:00:16]} Kc6 {[%emt 0:00:32]} 35. Rd8 {[%emt 0:00:10]} Kc7 {[%emt 0:00:26]} 36. R8d7+ {[%emt 0:01:09]} Kc6 {[%emt 0:00:02]} 37. Rd8 {[%emt 0:00:31]} Kc7 {[%emt 0:00:12]} 38. R4d7+ {[%emt 0:00:33]} Kc6 {[%emt 0:00:04]} 39. Rf7 {[%emt 0:00:29]} Rf2 {[%emt 0:02:23]} 40. Rc8+ {[%emt 0:00:06]} Kd6 {[%emt 0:00:39]} 41. Rxb7 {[%emt 0:00:28]} Rxf3+ {[%emt 0:00:09]} 42. Kd4 {[%emt 0:00:26]} Rf4+ {[%emt 0:00:20]} 43. Kc3 {[%emt 0:00:39]} Re3+ {[%emt 0:00:57]} 44. Kb2 {[%emt 0:00:09]} g4 {[%emt 0:00:44]} 45. Rb6+ {[%emt 0:00:14]} Kd7 {[%emt 0:00:09]} 46. Rg8 {[%emt 0:00:46]} Ke7 {[%emt 0:00:26]} 47. Rxa6 {[%emt 0:00:46]} Kf7 {[%emt 0:00:10]} 48. Raa8 {[%emt 0:00:19]} Re7 {[%emt 0:01:01]} 49. a6 {[%emt 0:00:36]} f5 {[%emt 0:00:25]} 50. Raf8+ {[%emt 0:00:23]} Ke6 {[%emt 0:00:05]} 51. Re8 {[%emt 0:00:06]} 1-0